Cogmind - Beta 13 X2 @@@ ROGUE MODE // 2024.01.05 @ 21:02:43 Player: IzRey Result: Self-destructed Performance ------------- Evolutions (1) 500 Regions Visited (2) 400 Robots Destroyed (18) 90 Value Destroyed (410) 410 Prototype IDs (2) 40 Alien Tech Used (0) 0 Bonus (0) 0 TOTAL SCORE: 1440 Bonus ------- None Cogmind --------- Core Integrity 393/400 Matter 300/300 Energy 125/125 System Corruption 0% Temperature Cool (0) Movement Treading (160) Location -9/Materials Parts ------- > --- POWER (1) -------- Light Ion Engine > --- PROPULSION (3) --- Light Treads Light Treads Light Treads > --- UTILITY (3) ------ Improved Heat Sink Large Storage Unit > --- WEAPON (2) ------- Small Laser Small Laser > --- INVENTORY (15) --- Light Ion Engine Light Ion Engine Aluminum Leg Aluminum Leg Signal Interpreter Tractor Beam Light Assault Rifle Hammer Peak State ------------ > --- POWER ------------ Light Ion Engine > --- PROPULSION ------- Light Treads Light Treads Light Treads > --- UTILITY ---------- Improved Heat Sink Large Storage Unit > --- WEAPON ----------- Small Laser Hammer > --- INVENTORY -------- Light Ion Engine Light Treads Aluminum Leg Aluminum Leg Signal Interpreter Tractor Beam Small Laser [Rating: 10] Favorites ----------- Power Light Ion Engine Engine Light Ion Engine Propulsion Light Treads Treads Light Treads Leg Aluminum Leg Utility Improved Heat Sink Device Improved Heat Sink Storage Large Storage Unit Weapon Small Laser Energy Gun Small Laser Impact Weapon Hammer Build | -11 -10 -9 ------- Run | Yrd Mat Mat Slots Evolved 2 | . . 2 Power . | . . . Propulsion 1 | . . 1 Utility 1 | . . 1 Weapon . | . . . Parts Attached 18 | . 14 4 Power 1 | . . 1 Engine 1 | . . 1 Core . | . . . Reactor . | . . . Propulsion 5 | . 3 2 Treads 5 | . 3 2 Leg . | . . . Wheel . | . . . Hover . | . . . Flight . | . . . Utility 3 | . 3 . Device 2 | . 2 . Storage 1 | . 1 . Processor . | . . . Hackware . | . . . Protection . | . . . Artifact . | . . . Weapon 9 | . 8 1 Energy Gun 5 | . 4 1 Energy Cannon . | . . . Ballistic Gun . | . . . Ballistic Cannon . | . . . Launcher . | . . . Special Weapon . | . . . Impact Weapon 4 | . 4 . Slashing Weapon . | . . . Piercing Weapon . | . . . Special Melee Weapon . | . . . Unidentified Prototypes . | . . . Parts Lost 1 | . . 1 Power . | . . . Propulsion 1 | . . 1 Utility . | . . . Weapon . | . . . Highest Loss Streak 1 | . . 1 To Critical Strikes . | . . . Average Slot Usage (%) 94 | . 96 88 Engine 13 | . 14 11 Treads 27 | . 26 33 Leg 1 | . 1 . Device 10 | . 10 11 Storage 13 | . 14 11 Energy Gun 21 | . 22 18 Impact Weapon 5 | . 5 3 Naked Turns . | . . . Heaviest Build 27 | 11 27 27 Greatest Support 60 | 20 40 60 Greatest Overweight (x) . | . . . Average Overweight (x) . | . . . Largest Inventory Capacity 15 | . 15 15 Average Capacity 12 | . 11 15 Most Carried 9 | . 8 9 Average Carried 6 | . 6 7 Final Capacity 15 | 8 15 15 Final Carried 8 | 6 8 8 Class Distribution -------------------- 90% | Mutant 9% | Scavenger-Mutant Dominant Class ---------------- Mutant | -10/Materials Scavenger-Mutant | -9/Materials Resources | -11 -10 -9 ----------- Run | Yrd Mat Mat Matter Collected 375 | 200 120 55 Remotely . | . . . Salvage Created 572 | . 461 111 Parts 35 | . 27 8 Haulers Intercepted . | . . . Recyclers Shooed . | . . . Parts Field Recycled . | . . . Retrieved Matter . | . . . Parts Self-Destructed . | . . . Prevented . | . . . Kills | -11 -10 -9 ------- Run | Yrd Mat Mat Combat Hostiles Destroyed 15 | . 12 3 Guns 14 | . 11 3 Classes Destroyed 4 | . 3 1 Worker 2 | . 2 . Recycler 1 | . . 1 Swarmer 6 | . 3 3 Grunt 9 | . 9 . Best Kill Streak 5 | . 5 2 Combat Bots Only 5 | . 5 2 Max Kills in Single Turn 1 | . 1 1 Gunslinging . | . . . Exploded . | . . . Melee . | . . . Uniques/NPCs Destroyed . | . . . Combat | -11 -10 -9 -------- Run | Yrd Mat Mat Hostile Shots Fired 70 | . 58 12 Missed 21 | . 20 1 Damage Taken 534 | . 443 91 Core 77 | . 70 7 Absorbed by Shields . | . . . Core Remaining (%) 86 | 100 72 . Volleys Fired 52 | . 44 8 Largest 2 | . 2 2 Hottest 90 | . 90 80 Shots Fired 104 | . 88 16 Gun 104 | . 88 16 Cannon . | . . . Launcher . | . . . Special . | . . . Kinetic . | . . . Thermal 104 | . 88 16 Explosive . | . . . Electromagnetic . | . . . Robot Hit Streak 30 | . 30 9 Robot Miss Streak 3 | . 3 1 Penetration Max . | . . . Secondary Targets 2 | . 2 . Max Gunslinging Chain 1 | . 1 . Shots Hit Robots 73 | . 62 11 Core Hits 30 | . 25 5 Critical Kills . | . . . Critical Parts Destroyed . | . . . Critical Strikes 1 | . 1 . Burn 1 | . 1 . Melee Attacks 7 | . 7 . Impact 7 | . 7 . Slashing . | . . . Piercing . | . . . Sneak Attacks . | . . . Combat Hostiles . | . . . Follow-up Attacks . | . . . Damage Inflicted 833 | . 715 118 Guns 833 | . 715 118 Cannons . | . . . Explosions . | . . . Melee . | . . . Ramming . | . . . Kinetic . | . . . Thermal 833 | . 715 118 Explosive . | . . . Electromagnetic . | . . . Impact . | . . . Slashing . | . . . Piercing . | . . . Highest Corruption . | . . . Average Corruption . | . . . Corruption Purged . | . . . Corruption Blocked . | . . . Overload Shots . | . . . Overflow Damage . | . . . Projectiles . | . . . Explosions . | . . . Melee . | . . . Knockbacks . | . . . Impact . | . . . Kinetic . | . . . Secondary . | . . . Self-Inflicted Damage . | . . . Shots . | . . . Rammed . | . . . Targets Rammed . | . . . Kicked . | . . . Crushed . | . . . Highest Temperature 240 | . 240 . Average Temperature 72 | . 72 . Received Heat Transfer 216 | . 216 . Siege Activations . | . . . Robots Corrupted . | . . . Combat Hostiles . | . . . Parts Fried . | . . . Impact Corruptions . | . . . Robots Melted 1 | . 1 . Combat Hostiles 1 | . 1 . Parts Melted 4 | . 3 1 Heat Transferred 2164 | . 1889 275 Parts Sabotaged . | . . . Parts Stolen . | . . . Parts Stripped . | . . . Power Chain Reactions . | . . . Missiles Intercepted . | . . . Alert | -11 -10 -9 ------- Run | Yrd Mat Mat Peak Influence 302 | . 302 225 Initial 100 | . . 100 Average 156 | . 155 161 Maximum Alert Level 1 | . 1 1 Low Security (%) 60 | . 59 67 Level 1 39 | . 40 32 Level 2 . | . . . Level 3 . | . . . Level 4 . | . . . Level 5 . | . . . High Security . | . . . Max Security . | . . . Squads Dispatched 4 | . 3 1 Investigation 1 | . 1 . Extermination . | . . . Reinforcement 3 | . 2 1 Assault . | . . . Garrison . | . . . Intercept . | . . . Searches Triggered . | . . . Construction Impeded . | . . . Haulers Reinforced . | . . . Active Scanning Responses . | . . . Cargo Convoy Interrupts . | . . . Stealth | -11 -10 -9 --------- Run | Yrd Mat Mat Distress Signals 3 | . 2 1 Communications Jammed . | . . . Distress Signals . | . . . Times Spotted 25 | . 19 6 Peak Tracking Total 4 | . 4 4 Tactical Retreats 2 | . . 2 Traps | -11 -10 -9 ------- Run | Yrd Mat Mat Traps Triggered . | . . . Indirectly . | . . . Trap Hack Attempts . | . . . Triggered . | . . . Disarmed . | . . . Reprogrammed . | . . . Reused . | . . . Traps Extracted . | . . . Installed . | . . . Triggered . | . . . Machines | -11 -10 -9 ---------- Run | Yrd Mat Mat Machines Disabled 1 | . 1 . Max in Single Turn 1 | . 1 . Machines Repaired . | . . . Machines Dismantled . | . . . Machines Sabotaged . | . . . Overloaded Fab Kills . | . . . Hacking | -11 -10 -9 --------- Run | Yrd Mat Mat Machines Accessed 4 | . 3 1 Terminals 3 | . 2 1 Fabricators . | . . . Repair Stations . | . . . Recycling Units 1 | . 1 . Scanalyzers . | . . . Garrison Access . | . . . Total Hacks 6 | . 5 1 Successful 3 | . 3 . Failed 3 | . 2 1 Catastrophic 2 | . 1 1 Database Lockouts . | . . . Manual 4 | . 3 1 Terminals 5 | . 4 1 Fabricators . | . . . Repair Stations . | . . . Recycling Units 1 | . 1 . Scanalyzers . | . . . Garrison Access . | . . . Terminal Hacks 2 | . 2 . Prototype ID Bank 1 | . 1 . Locate Traps 1 | . 1 . Fabricator Hacks . | . . . Repair Station Hacks . | . . . Recycling Unit Hacks . | . . . Scanalyzer . | . . . Garrison Access Hacks . | . . . Unauthorized Hacks 1 | . 1 . Terminals . | . . . Fabricators . | . . . Repair Stations . | . . . Recycling Units 1 | . 1 . Tunnel 1 | . 1 . Scanalyzers . | . . . Garrison Access . | . . . Data Cores Recovered . | . . . Used . | . . . Hacking Detections 3 | . 2 1 Full Trace Events . | . . . Feedback Events . | . . . Feedback Blocked . | . . . Robot Schematics Acquired . | . . . Robots Built . | . . . Authchips . | . . . Time . | . . . Total Robot Build Rating . | . . . Part Schematics Acquired . | . . . Parts Built . | . . . Authchips . | . . . Time . | . . . Total Part Build Rating . | . . . Parts Repaired . | . . . Time . | . . . Parts Recycled . | . . . Recycled Matter . | . . . Retrieved Matter . | . . . Retrieved Components . | . . . Parts Scanalyzed . | . . . Part Schematics Acquired . | . . . Parts Damaged . | . . . Bothacking | -11 -10 -9 ------------ Run | Yrd Mat Mat Used RIF Installer . | . . . Robots Hacked . | . . . Non-combat . | . . . Combat . | . . . Robot Hacks Applied . | . . . Relay Couplers Released . | . . . Fabnet Peak Effective % . | . . . Robots Rewired . | . . . Allies Hacked . | . . . Hacks Repelled . | . . . Allies | -11 -10 -9 -------- Run | Yrd Mat Mat Total Allies . | . . . Largest Group . | . . . Highest-Rated Group . | . . . Highest-Rated Ally . | . . . Total Orders . | . . . Ally Attacks . | . . . Total Damage . | . . . Kills . | . . . Allies Corrupted . | . . . Allies Melted . | . . . Intel | -11 -10 -9 ------- Run | Yrd Mat Mat Robot Analysis Total . | . . . Derelict Logs Recovered . | . . . Drone Launches . | . . . Drone Recoveries . | . . . Exploration | -11 -10 -9 ------------- Run | Yrd Mat Mat Turns Passed 917 | . 752 165 Spaces Moved 421 | 1 341 79 Core . | . . . Treads 393 | . 314 79 Legs 28 | 1 27 . Wheels . | . . . Hover . | . . . Flight . | . . . Fastest Speed 120 | 120 120 160 Average Speed 157 | 120 156 160 Slowest Speed 160 | 120 160 160 Overloaded Moves . | . . . Propulsion Burnouts . | . . . Robots Hopped . | . . . Cave-ins Triggered . | . . . Exploration Rate (%) 23 | 2 57 11 Regions Visited 2 Branch Regions . Pre-discovered Areas 1 | . 1 . Known Exits Taken . | . . . Unknown Exits Taken 2 | 1 1 . Scrap Searched . | . . . Spaces Dug 4 | . 4 . Terrain Destroyed 4 | . 4 . Melee 4 | . 4 . Projectile . | . . . AOE . | . . . Terrain Rammed . | . . . Walls Destroyed . | . . . Machines Disabled . | . . . Actions | -11 -10 -9 --------- Run | Yrd Mat Mat Total 559 | . 459 100 Wait 46 | . 38 8 Move 419 | . 340 79 Hop . | . . . Pick Up 6 | . 5 1 Fast Attach 2 | . 2 . Attach 4 | . 2 2 Detach 3 | . 3 . Swap 12 | . 10 2 Drop 8 | . 8 . Fire 52 | . 44 8 Melee 7 | . 7 . Ram . | . . . Kick . | . . . Crush . | . . . Escape Stasis . | . . . Rewire . | . . . Trap . | . . . Miscellaneous . | . . . Route ------- -11/Scrapyard -10/Materials (discovered 2 exits: *Mat / [*Min]) -9/Materials History --------- Turn | Location | Event 1 | -11/Scrapyard | Discovered new exit (range 0) 1 | -11/Scrapyard | Entered Materials 307 | -10/Materials | Build established: Mutant 650 | -10/Materials | Discovered new exit (range 10) 728 | -10/Materials | Discovered new exit (range 11) 753 | -10/Materials | Entered another Materials area 753 | -9/Materials | Evolved 2 slots: Propulsion x1, Utility x1 918 | -9/Materials | Self-destructed Last Messages --------------- 00826_ R-06 Scavenger collects Flight Unit. 00852_ Lgt. Treads destroyed. 00859_ T-07 Excavator is excavating. 00862_ U-05 Engineer lays Concrete. 00862_ Lgt. Ion Engine melted. 00862_ S-10 Pest destroyed. 00863_ T-07 Excavator is excavating. 00868_ Acquired 14 matter. 00871_ R-06 Scavenger collects Flight Unit. 00871_ R-06 Scavenger destroyed. 00874_ Acquired 11 matter. 00897_ O-16 Technician sends out distress signal. 00897_ O-16 Technician: "IFF HANDSHAKE FAILED. SECURING TERMINAL." 00900_ T-07 Excavator is excavating. 00903_ Connecting with Terminal... 00903_ Current location identified: Materials 00904_ ALERT: Hostiles spotted, dispatching reinforcements to Terminal M011. 00904_ T-07 Excavator is excavating. 00905_ Connecting with Terminal... Map ----- +----------------------------------------------------+ | ?????????????????????????????????????????????? | | ?????????????????????????????????????????????? | | ?????????????????????????????????????????????? | | ?????????????????????????????????????????????? | | ?????????????????????????????????????????????? | | ?????????????????????????????????????????????? | | ?????????????????????????????????????????????? | | ?????????????????????????????????????????????? | | ?????????????????????????????????????????????? | | ?????????????????????????????????????????????? | | ?????????????????????????????????????????????? | | ?????????????????????????????????????????????? | | ?????????????????????????????????????????????? | | ?????????????????????????????????????????????? | | ?????????????????????????????????????????????? | | ???????????????????????????? ???????????????? | | ???????????????????????????? ???????????????? | | ???????????????????????????? ???????????????? | | ???????????????????????????? #??????????????? | | ?????????????????######+#### #??????????????? | | ???????????????# # #??????????????? | | ???????????????# """ # #??????????????? | | ???????????????# """ [[ # #??????????????? | | ???????????????# """ [! # #??????????????? | | ???????????????# [ # #???????? # #??? | | ???????????????# @ # #??????? ???? | | ???????????????# # ####### #????? | | ???????????????########+#### #????? | | ??????????????????????# #????? | | ???????????+########### #????? | | ??????????# # # T #????? | | ??????????# # # ##### #????? | | ??????????# # ]]] # #????????????? | | ??????????# # ]]] + #????????????? | | ??????????# # ]] # #????????????? | | ??????????# # ####### #????????????? | | ??????????# # = #?????# #????????????? | | ??????????# #=%! #?????# #????????????? | | ??????????# ##+########?????# #????????????? | | ??????????# ==#????????????# #????????????? | | #######???# ##########???? #????????????? | | [ ##### ????????????? | | "" + ????????????? | | " ""S=######## ######+##+#???##+##???????????? | | " "" #?????? ?????????????????????????????? | | " #?????? #????????????????????????????? | | " #?????? #????????????????????????????? | | " #??????####????????????????????????????? | | #??????????????????????????????????????? | | #######??????????????????????????????????????? | +----------------------------------------------------+ Best States ------------- Heat Dissipation 42 Energy Generation 10 Energy Capacity 125 Matter Stores 300 Matter Capacity 300 Sight Range 16 Terrain Scan Density 10 Evasion (%) 55 Recoil Reduction 3 Item Schematics ----------------- None Robot Schematics ------------------ None Fabricated ------------ Nothing Alien Tech Used ----------------- None Achievements -------------- None Challenges ------------ None Game ------ Seed InsulatedControlAccelerator Manual? 0 Play Time 00:15:39 Cumulative 555.8 hours Start 2023.12.20 @ 16:10:36 End 2024.01.05 @ 21:02:43 Sessions 3 Manual Loads 0 Difficulty Rogue Special Mode None Game No. 83 Rogue 66 Adventurer 17 Explorer 0 Win Type - Total 1 Types 1/0/0/0/0/0/0/0/0 Lore% 52 Gallery% 64 Achievement% 54 Wizard Run 0 Options --------- ASCII 0 Keyboard 1 Movement Vi Keybinds 0 Fullscreen 1 Font 18/SmallcapsGlow Map View 76x50 Zoom Use 0% Tactical HUD 1 Map Filters NONE Filters NONE Steam 1 RUN: b8d68023-0131-4117-b4d2-9ea62d5b848b